Cogmind - Beta 15 @@@ ROGUE MODE // 2025.08.11 @ 19:53:16 Player: winnking222 Result: Destroyed by D-53 Grenadier with Mini Grenade Launcher Performance ------------- Evolutions (0) 0 Regions Visited (2) 400 Robots Destroyed (23) 115 Value Destroyed (434) 434 Prototype IDs (2) 40 Alien Tech Used (0) 0 Bonus (0) 0 TOTAL SCORE: 989 Bonus ------- None Cogmind --------- Core Integrity 0/250 Matter 285/300 Energy 239/250 System Corruption 3% Temperature Cool (0) Movement Walking (190) Ox1 Location -10/Mines Parts ------- > --- POWER (1) -------- Ion Engine > --- PROPULSION (2) --- Aluminum Leg > --- UTILITY (2) ------ Small Storage Unit Seismic Detector > --- WEAPON (2) ------- Particle Gun Light Assault Rifle > --- INVENTORY (8) ---- Light Ion Engine Aluminum Leg Large Storage Unit Seismic Detector Peak State ------------ > --- POWER ------------ Light Ion Engine > --- PROPULSION ------- Aluminum Leg Aluminum Leg > --- UTILITY ---------- Small Storage Unit Seismic Detector > --- WEAPON ----------- Assault Rifle Light Assault Rifle > --- INVENTORY -------- Light Ion Engine Light Treads Wheel Seismic Detector [Rating: 7] Favorites ----------- Power Light Ion Engine Engine Light Ion Engine Propulsion Aluminum Leg Treads Light Treads Leg Aluminum Leg Wheel Wheel Utility Small Storage Unit Device Seismic Detector Storage Small Storage Unit Weapon Light Assault Rifle Energy Gun Particle Gun Ballistic Gun Light Assault Rifle Ballistic Cannon Light Cannon Build | -11 -10 -10 ------- Run | Yrd Mat Min Slots Evolved . | . . . Power . | . . . Propulsion . | . . . Utility . | . . . Weapon . | . . . Parts Attached 16 | 7 8 1 Power 2 | 1 1 . Engine 2 | 1 1 . Core . | . . . Reactor . | . . . Propulsion 6 | 2 4 . Treads 1 | . 1 . Leg 4 | 2 2 . Wheel 1 | . 1 . Hover . | . . . Flight . | . . . Utility 3 | 2 1 . Device 2 | 1 1 . Storage 1 | 1 . . Processor . | . . . Hackware . | . . . Protection . | . . . Artifact . | . . . Weapon 5 | 2 2 1 Energy Gun 1 | . . 1 Energy Cannon . | . . . Ballistic Gun 3 | 2 1 . Ballistic Cannon 1 | . 1 . Launcher . | . . . Special Weapon . | . . . Impact Weapon . | . . . Slashing Weapon . | . . . Piercing Weapon . | . . . Special Melee Weapon . | . . . Unidentified Prototypes . | . . . Parts Lost 7 | . 5 2 Power 1 | . 1 . Propulsion 3 | . 2 1 Utility . | . . . Weapon 3 | . 2 1 Highest Loss Streak 5 | . 5 2 To Critical Strikes . | . . . Average Backups 4 | 3 4 5 Power 1 | . 1 1 Propulsion 1 | 1 1 1 Utility 1 | . 1 2 Weapon . | . . 1 Tool/Special . | . . . Unused Backups 4 | . . 4 Power 1 | . . 1 Propulsion 1 | . . 1 Utility 2 | . . 2 Weapon . | . . . Tool/Special . | . . . Average Slot Usage (%) 90 | . 88 100 Engine 7 | . 5 14 Treads 6 | . 7 . Leg 14 | . 11 28 Wheel 6 | . 7 . Device 14 | . 14 14 Storage 14 | . 14 14 Ballistic Gun 15 | . 15 14 Ballistic Cannon 10 | . 10 14 Peak Build Rating 7 | 7 7 7 Average Rating 6 | 6 6 6 On Entrance 4 | . 7 7 Naked Turns . | . . . Heaviest Build 15 | 12 15 15 Greatest Support 20 | 20 20 20 Greatest Overweight (x) . | . . . Average Overweight (x) . | . . . Largest Inventory Capacity 8 | 8 8 8 Average Capacity 7 | 7 8 8 Most Carried 7 | 5 7 5 Average Carried 4 | 3 4 4 Final Capacity 8 | 8 8 8 Final Carried 5 | 4 5 4 Class Distribution -------------------- 100% | Mutant Dominant Class ---------------- Mutant | -10/Materials Mutant | -10/Mines Resources | -11 -10 -10 ----------- Run | Yrd Mat Min Matter Collected 742 | 394 333 15 Remotely . | . . . Salvage Created 677 | 198 444 35 Parts 34 | 14 18 2 Haulers Intercepted 1 | . 1 . Recyclers Shooed . | . . . Parts Field Recycled . | . . . Retrieved Matter . | . . . Parts Self-Destructed . | . . . Prevented . | . . . Kills | -11 -10 -10 ------- Run | Yrd Mat Min Combat Hostiles Destroyed 11 | . 8 3 Guns 7 | . 5 2 Cannons 4 | . 3 1 Classes Destroyed 7 | 2 4 1 Builder 1 | . 1 . Tunneler 6 | 6 . . Hauler 1 | . 1 . Recycler 2 | 1 1 . Watcher 2 | . 2 . Swarmer 3 | . . 3 Grunt 8 | . 8 . Best Kill Streak 3 | 2 3 3 Combat Bots Only 3 | . 2 3 Max Kills in Single Turn 1 | 1 1 1 Gunslinging . | . . . Exploded . | . . . Melee . | . . . Uniques/NPCs Destroyed . | . . . Combat | -11 -10 -10 -------- Run | Yrd Mat Min Hostile Shots Fired 86 | . 77 9 Missed 22 | . 21 1 Hits 64 | . 56 8 Projectile 64 | . 56 8 AOE 10 | . . 10 Critical Strikes 1 | . . 1 Damage Taken 1150 | . 770 380 Core 254 | . 184 70 Absorbed by Shields . | . . . Core Remaining (%) 100 | 100 . . Volleys Fired 109 | 34 69 6 Largest 2 | 2 2 2 Hottest 50 | 40 50 50 Shots Fired 198 | 68 118 12 Gun 165 | 68 91 6 Cannon 33 | . 27 6 Launcher . | . . . Special . | . . . Kinetic 198 | 68 118 12 Thermal . | . . . Explosive . | . . . Electromagnetic . | . . . Robot Hit Streak 14 | 12 13 14 Robot Miss Streak 7 | 7 3 2 Penetration Max . | . . . Secondary Targets 1 | . 1 . Max Gunslinging Chain 1 | . 1 . Shots Hit Robots 127 | 35 85 7 Core Hits 44 | 15 26 3 Critical Kills . | . . . Critical Parts Destroyed 1 | 1 . . Critical Strikes 1 | 1 . . Destroy 1 | 1 . . Melee Attacks . | . . . Impact . | . . . Slashing . | . . . Piercing . | . . . Sneak Attacks . | . . . Combat Hostiles . | . . . Follow-up Attacks . | . . . Damage Inflicted 1519 | 420 1005 94 Guns 1128 | 420 665 43 Cannons 387 | . 336 51 Explosions . | . . . Melee . | . . . Ramming 4 | . 4 . Kinetic 1515 | 420 1001 94 Thermal . | . . . Explosive . | . . . Electromagnetic . | . . . Impact . | . . . Slashing . | . . . Piercing . | . . . Highest Corruption 3 | . 3 3 Average Corruption 1 | . 1 3 Corruption Purged . | . . . Corruption Blocked . | . . . Effects 7 | . 4 3 Message Errors 1 | . . 1 Matter Fused 1 | . 1 . Energy Discharges 3 | . 1 2 Data Loss (minor) 1 | . 1 . Data Loss (major) 1 | . 1 . Overload Shots . | . . . Overflow Damage 14 | . 14 . Projectiles 14 | . 14 . Explosions . | . . . Melee . | . . . Knockbacks 3 | . 2 1 Impact . | . . . Kinetic 3 | . 2 1 Secondary . | . . . Self-Inflicted Damage . | . . . Shots . | . . . Rammed 1 | . 1 . Targets Rammed 5 | . 4 1 Kicked 4 | . 3 1 Crushed . | . . . Highest Temperature 20 | . 19 20 Average Temperature 7 | . 7 9 Received Heat Transfer 417 | . 417 . Siege Activations . | . . . Martial Activations . | . . . Shielding Activations . | . . . Robots Disrupted . | . . . Combat Hostiles . | . . . Robots Corrupted . | . . . Combat Hostiles . | . . . Parts Fried . | . . . Impact Corruptions . | . . . Robots Melted . | . . . Combat Hostiles . | . . . Parts Melted . | . . . Heat Transferred . | . . . Parts Sabotaged . | . . . Parts Stolen . | . . . Parts Stripped . | . . . Power Chain Reactions . | . . . Alert | -11 -10 -10 ------- Run | Yrd Mat Min Maximum Alert Level . | . . . Low Security (%) 100 | 100 100 100 Level 1 . | . . . Level 2 . | . . . Level 3 . | . . . Level 4 . | . . . Level 5 . | . . . High Security . | . . . Max Security . | . . . Peak Influence 67 | 5 67 60 Initial . | . . . Average 9 | 1 10 18 Influence Increases 379 | 35 274 70 Destroy 0b10 Robot/C 220 | . 160 60 Destroy 0b10 Robot/NC 60 | 35 25 . Destroy Leader 56 | . 46 10 Successful Hack 27 | . 27 . Destroy Structure 1 | . 1 . Lose Combat Pursuer 15 | . 15 . Influence Decreases 379 | 35 274 70 Time Decay 379 | 35 274 70 Squads Dispatched 1 | . 1 . Investigation . | . . . Extermination . | . . . Reinforcement 1 | . 1 . Assault . | . . . Garrison . | . . . Intercept . | . . . Searches Triggered . | . . . Construction Impeded . | . . . Haulers Reinforced . | . . . Active Scanning Responses . | . . . Cargo Convoy Interrupts . | . . . Stealth | -11 -10 -10 --------- Run | Yrd Mat Min Distress Signals 1 | . 1 . Communications Jammed . | . . . Distress Signals . | . . . Times Spotted 23 | . 18 5 Peak Tracking Total 4 | . 4 3 Tactical Retreats 1 | . 1 . Traps | -11 -10 -10 ------- Run | Yrd Mat Min Traps Triggered 3 | . 3 . Indirectly . | . . . Trap Hack Attempts . | . . . Triggered . | . . . Disarmed . | . . . Reprogrammed . | . . . Reused . | . . . Traps Extracted . | . . . Installed . | . . . Triggered . | . . . Machines | -11 -10 -10 ---------- Run | Yrd Mat Min Machines Disabled . | . . . Max in Single Turn . | . . . Machines Repaired . | . . . Machines Dismantled . | . . . Machines Sabotaged . | . . . Overloaded Fab Kills . | . . . Hacking | -11 -10 -10 --------- Run | Yrd Mat Min Machines Accessed 7 | . 7 . Terminals 7 | . 7 . Fabricators . | . . . Repair Stations . | . . . Recycling Units . | . . . Scanalyzers . | . . . Garrison Access . | . . . Total Hacks 19 | . 19 . Successful 13 | . 13 . Failed 6 | . 6 . Catastrophic . | . . . Database Lockouts . | . . . Manual 15 | . 15 . Terminals 19 | . 19 . Fabricators . | . . . Repair Stations . | . . . Recycling Units . | . . . Scanalyzers . | . . . Garrison Access . | . . . Terminal Hacks 4 | . 4 . Prototype ID Bank 1 | . 1 . Locate Traps 1 | . 1 . Hauler Manifests 1 | . 1 . Zone Layout 1 | . 1 . Fabricator Hacks . | . . . Repair Station Hacks . | . . . Recycling Unit Hacks . | . . . Scanalyzer . | . . . Garrison Access Hacks . | . . . Unauthorized Hacks 9 | . 9 . Terminals 9 | . 9 . Botnet 3 | . 3 . Skim 6 | . 6 . Fabricators . | . . . Repair Stations . | . . . Recycling Units . | . . . Scanalyzers . | . . . Garrison Access . | . . . Data Cores Recovered . | . . . Used . | . . . Hacking Detections 3 | . 3 . Full Trace Events 1 | . 1 . Feedback Events . | . . . Feedback Blocked . | . . . Robot Schematics Acquired . | . . . Robots Built . | . . . Authchips . | . . . Time . | . . . Total Robot Build Rating . | . . . Part Schematics Acquired . | . . . Parts Built . | . . . Authchips . | . . . Time . | . . . Total Part Build Rating . | . . . Parts Repaired . | . . . Time . | . . . Parts Recycled . | . . . Recycled Matter . | . . . Retrieved Matter . | . . . Retrieved Components . | . . . Parts Scanalyzed . | . . . Part Schematics Acquired . | . . . Parts Damaged . | . . . Bothacking | -11 -10 -10 ------------ Run | Yrd Mat Min Used RIF Installer . | . . . Robots Hacked . | . . . Non-combat . | . . . Combat . | . . . Robot Hacks Applied . | . . . Relay Couplers Released . | . . . Fabnet Peak Effective % . | . . . Robots Rewired . | . . . Allies Hacked . | . . . Hacks Repelled . | . . . Allies | -11 -10 -10 -------- Run | Yrd Mat Min Total Allies 3 | . . 3 Largest Group 3 | . . 3 Highest-Rated Group 40 | . . 40 Highest-Rated Ally 16 | . . 16 Total Orders . | . . . Ally Attacks 3 | . . 3 Total Damage 38 | . . 38 Kills . | . . . Allies Corrupted . | . . . Allies Melted . | . . . Intel | -11 -10 -10 ------- Run | Yrd Mat Min Active Infowar (turns) 1742 | 170 1348 224 Seismic 1742 | 170 1348 224 Robot Analysis Total . | . . . Derelict Logs Recovered 1 | . . 1 Drone Launches . | . . . Drone Recoveries . | . . . Exploration | -11 -10 -10 ------------- Run | Yrd Mat Min Turns Passed 1824 | 252 1348 224 Spaces Moved 944 | 127 648 169 Core 18 | 18 . . Treads 2 | . 2 . Legs 509 | 109 231 169 Wheels 415 | . 415 . Hover . | . . . Flight . | . . . Fastest Speed 50 | 50 80 120 Average Speed 101 | 110 94 120 Slowest Speed 160 | 120 160 120 Overloaded Moves . | . . . Propulsion Burnouts . | . . . Robots Hopped . | . . . Potential Cave-ins . | . . . Cave-ins Triggered . | . . . Exploration Rate (%) 50 | 7 95 50 Regions Visited 2 Branch Regions 1 Pre-discovered Areas 2 | . 1 1 Known Exits Taken . | . . . Unknown Exits Taken 2 | 1 1 . Scrap Searched . | . . . Spaces Dug . | . . . Terrain Destroyed . | . . . Melee . | . . . Projectile . | . . . AOE . | . . . Terrain Rammed . | . . . Walls Destroyed . | . . . Machines Disabled . | . . . Actions | -11 -10 -10 --------- Run | Yrd Mat Min Total 1633 | 178 1276 179 Wait 538 | . 536 2 Move 942 | 126 647 169 Hop . | . . . Pick Up 20 | 11 9 . Fast Attach . | . . . Attach 15 | 7 7 1 Detach . | . . . Swap 1 | . 1 . Drop 3 | . 3 . Fire 109 | 34 69 6 Melee . | . . . Ram . | . . . Kick 4 | . 3 1 Crush 1 | . 1 . Escape Stasis . | . . . Rewire . | . . . Trap . | . . . Miscellaneous . | . . . Route ------- -11/Scrapyard -10/Materials (discovered 6 exits: *Mat x3 / [*Min x2] / *Sub) -10/Mines (discovered 2 exits: Mat x2) History --------- Turn | Location | Event 2 | -11/Scrapyard | Met Revision 17 4 | -11/Scrapyard | Discovered new exit (range 16) 253 | -11/Scrapyard | Entered Materials 311 | -10/Materials | Build established: Mutant 509 | -10/Materials | Discovered new exit (range 5) 601 | -10/Materials | Core integrity fell below 50% 629 | -10/Materials | Lost 5 parts (1p2n2w) 739 | -10/Materials | Discovered new exit (range 15) 775 | -10/Materials | Discovered new exit (range 13) 813 | -10/Materials | Discovered new exit (range 16) 939 | -10/Materials | Discovered new exit (range 8) 965 | -10/Materials | Discovered new exit (range 7) 1037 | -10/Materials | Learned Storage security intel 1119 | -10/Materials | Learned location of 2 exits from Mines 1249 | -10/Materials | Learned location of 1 exit from Recycling 1296 | -10/Materials | Identified exit to Materials 1296 | -10/Materials | Identified exit to Subcaves 1335 | -10/Materials | Learned 4 Materials zone layouts 1405 | -10/Materials | Learned location of 3 exits from Materials 1454 | -10/Materials | Learned Storage emergency access door positions 1512 | -10/Materials | Learned location of Mines (-9) 1601 | -10/Materials | Entered Mines 1673 | -10/Mines | Assisted by bots powering up and referring to "LRC-V3" 1693 | -10/Mines | Learned location of Zion (-7) 1800 | -10/Mines | Assembled infested the area 1822 | -10/Mines | Core integrity fell below 20% 1825 | -10/Mines | Destroyed by D-53 Grenadier with Mini Grenade Launcher Last Messages --------------- 01673_ Mercenary 1a: "Hello LRC-V3. What is your command?" 01673_ Trooper 1b: "Hello LRC-V3. What is your command?" 01686_ K-01 Serf collects debris. 01693_ Acquired derelict log, extracted data. World map updated: -7/Zion. 01718_ K-01 Serf collects debris. 01746_ System corrupted: Energy discharge (-60). 01748_ K-01 Serf collects debris. 01793_ System corrupted: Energy discharge (-62). 01800_ ALERT: Infestation in the mines, dispatching Demolisher response squad. 01816_ C-30 ARC bursts open, deploying its payload. 01816_ D-53 Grenadier unfolds itself. 01816_ Trooper 1a destroyed. 01817_ Trooper 1b destroyed. 01819_ D-53 Grenadier knocked back. 01819_ Mercenary 1a destroyed. 01821_ The unstable cave ceiling collapses. 01822_ Lgt. Cannon destroyed. 01822_ Aluminum Leg destroyed. Map ----- +----------------------------------------------------+ | ???????????????????????????????????????????????# | | ???????????????????????????????????????????????## | | ????????????????????????????????????????????????## | | ?????????????????????????????????????????????????? | | ????????????????????????????????????????????###### | | ????????????????????????????????????????# | | ????????????????????????????????????????????###### | | ?????????????????